[Event "9th RTU Rapid 2019"]
[Site "Riga"]
[Date "2019.08.04"]
[Round "2.5"]
[White "Mitra, Roman C"]
[Black "Vishnu Prasanna. V"]
[Result "0-1"]
[WhiteElo "2109"]
[BlackElo "2465"]
[PlyCount "52"]
[EventDate "2019.08.05"]
[EventType "swiss"]
[EventCountry "LAT"]
[TimeControl "5400+30"]
[WhiteClock "0:07:26"]
[BlackClock "0:04:15"]

1. c4 {[%emt 1:15:22]} Nf6 {[%emt 1:15:22]} 2. g3 {[%emt 0:00:28]} g6 {[%emt 0:00:27]} 3. Bg2 {[%emt 0:00:27]} Bg7 {[%emt 0:00:28]} 4. Nc3 {[%emt 0:00:28]} O-O {[%emt 0:00:27]} 5. Nf3 {[%emt 0:00:33]} d6 {[%emt 0:00:27]} 6. O-O {[%emt 0:00:30]} e5 {[%emt 0:00:35]} 7. d3 {[%emt 0:00:28]} Nc6 {[%emt 0:00:28]} 8. Rb1 {[%emt 0:00:30]} a5 {[%emt 0:00:46]} 9. a3 {[%emt 0:00:29]} Nd4 {[%emt 0:00:28]} 10. Ne1 {[%emt 0:03:00]} c6 {[%emt 0:00:41]} 11. b4 {[%emt 0:00:37]} axb4 {[%emt 0:00:44]} 12. axb4 {[%emt 0:00:29]} d5 {[%emt 0:00:30]} 13. e3 {[%emt 0:00:42]} Ne6 {[%emt 0:00:38]} 14. cxd5 {[%emt 0:02:05]} cxd5 {[%emt 0:00:28]} 15. e4 {[%emt 0:03:36]} dxe4 {[%emt 0:03:26]} 16. dxe4 {[%emt 0:00:31]} Nd4 {[%emt 0:00:28]} 17. Nd3 {[%emt 0:00:54]} Bg4 {[%emt 0:00:48]} 18. f3 {[%emt 0:00:55]} Be6 {[%emt 0:00:28]} 19. Be3 {[%emt 0:01:11]} Bc4 {[%emt 0:01:53]} 20. Nxe5 {[%emt 0:01:27]} Bxf1 {[%emt 0:00:30]} 21. Bxf1 {[%emt 0:00:30]} Ne6 {[%emt 0:02:00]} 22. f4 {[%emt 0:00:45]} Rc8 {[%emt 0:00:33]} 23. Qb3 {[%emt 0:00:30]} Nd4 {[%emt 0:00:42]} 24. Qb2 {[%emt 0:00:32]} Ng4 {[%emt 0:00:54]} 25. Nxg4 {[%emt 0:01:03]} Rxc3 {[%emt 0:00:49]} 26. Qf2 {[%emt 0:00:43]} Rc2 {[%emt 0:00:34]} 0-1

[Event "9th RTU Rapid 2019"]
[Site "Riga"]
[Date "2019.08.04"]
[Round "2.6"]
[White "Krivonosov, Oleg"]
[Black "Solomka, Nikita"]
[Result "1-0"]
[WhiteElo "2445"]
[BlackElo "1892"]
[PlyCount "141"]
[EventDate "2019.08.05"]
[EventType "swiss"]
[EventCountry "LAT"]
[TimeControl "5400+30"]
[WhiteClock "0:01:03"]
[BlackClock "0:04:51"]

1. Nf3 {[%emt 1:15:23]} Nf6 {[%emt 1:15:22]} 2. c4 {[%emt 0:00:27]} e6 {[%emt 0:00:32]} 3. g3 {[%emt 0:00:26]} b6 {[%emt 0:00:27]} 4. Bg2 {[%emt 0:00:27]} Bb7 {[%emt 0:00:26]} 5. O-O {[%emt 0:00:27]} Be7 {[%emt 0:00:32]} 6. Nc3 {[%emt 0:00:26]} O-O {[%emt 0:00:36]} 7. d4 {[%emt 0:00:27]} d6 {[%emt 0:01:23]} 8. b3 {[%emt 0:00:36]} Nbd7 {[%emt 0:00:29]} 9. Bb2 {[%emt 0:00:27]} a6 {[%emt 0:00:42]} 10. Qc2 {[%emt 0:00:33]} Re8 {[%emt 0:00:48]} 11. Rad1 {[%emt 0:00:28]} Qc8 {[%emt 0:00:38]} 12. d5 {[%emt 0:00:47]} e5 {[%emt 0:01:14]} 13. e4 {[%emt 0:00:30]} a5 {[%emt 0:00:54]} 14. Bh3 {[%emt 0:00:56]} Qd8 {[%emt 0:00:41]} 15. Nh4 {[%emt 0:00:50]} Bf8 {[%emt 0:00:42]} 16. Nf5 {[%emt 0:00:51]} g6 {[%emt 0:00:43]} 17. Ne3 {[%emt 0:00:26]} Bg7 {[%emt 0:00:32]} 18. a3 {[%emt 0:00:37]} Bc8 {[%emt 0:01:19]} 19. b4 {[%emt 0:00:37]} Nf8 {[%emt 0:01:40]} 20. Bxc8 {[%emt 0:00:28]} Qxc8 {[%emt 0:00:28]} 21. f3 {[%emt 0:00:31]} h5 {[%emt 0:00:45]} 22. Nb5 {[%emt 0:01:01]} Qd7 {[%emt 0:01:00]} 23. Bc3 {[%emt 0:00:39]} axb4 {[%emt 0:00:30]} 24. axb4 {[%emt 0:00:26]} Ra6 {[%emt 0:00:57]} 25. Ra1 {[%emt 0:00:35]} Rea8 {[%emt 0:00:27]} 26. Rxa6 {[%emt 0:00:28]} Rxa6 {[%emt 0:00:27]} 27. Ra1 {[%emt 0:00:26]} Rxa1+ {[%emt 0:00:30]} 28. Bxa1 {[%emt 0:00:27]} N8h7 {[%emt 0:00:58]} 29. h4 {[%emt 0:00:48]} Ne8 {[%emt 0:00:52]} 30. Bc3 {[%emt 0:00:36]} Qh3 {[%emt 0:01:14]} 31. Qg2 {[%emt 0:00:36]} Qc8 {[%emt 0:00:41]} 32. Kh2 {[%emt 0:01:01]} Bh6 {[%emt 0:00:55]} 33. Bd2 {[%emt 0:01:52]} Qa6 {[%emt 0:00:55]} 34. Nf1 {[%emt 0:00:35]} Bg7 {[%emt 0:00:45]} 35. Be3 {[%emt 0:02:28]} Qa4 {[%emt 0:01:27]} 36. Qd2 {[%emt 0:00:36]} Nf8 {[%emt 0:01:32]} 37. Kg2 {[%emt 0:00:42]} Nd7 {[%emt 0:00:27]} 38. Qb2 {[%emt 0:01:13]} f5 {[%emt 0:01:07]} 39. Nc3 {[%emt 0:00:42]} Qa6 {[%emt 0:00:45]} 40. Qa2 {[%emt 0:00:41]} Qxa2+ {[%emt 0:00:33]} 41. Nxa2 {[%emt 0:00:25]} fxe4 {[%emt 0:00:27]} 42. fxe4 {[%emt 0:00:24]} Ndf6 {[%emt 0:00:33]} 43. Nc3 {[%emt 0:00:42]} Kf7 {[%emt 0:00:31]} 44. Nh2 {[%emt 0:01:08]} Ke7 {[%emt 0:00:39]} 45. Kf3 {[%emt 0:00:29]} Kf7 {[%emt 0:01:06]} 46. Nb5 {[%emt 0:00:35]} Bf8 {[%emt 0:00:38]} 47. Na7 {[%emt 0:00:33]} Ng8 {[%emt 0:01:02]} 48. Nc6 {[%emt 0:00:58]} Be7 {[%emt 0:00:43]} 49. Nf1 {[%emt 0:00:49]} Bf6 {[%emt 0:00:39]} 50. Nd2 {[%emt 0:00:33]} Ne7 {[%emt 0:00:27]} 51. Nd8+ {[%emt 0:00:35]} Kg8 {[%emt 0:00:31]} 52. Ne6 {[%emt 0:00:29]} Kf7 {[%emt 0:00:47]} 53. Nb1 {[%emt 0:00:50]} Nc8 {[%emt 0:00:27]} 54. Nc3 {[%emt 0:00:35]} Na7 {[%emt 0:00:27]} 55. Nxc7 {[%emt 0:00:53]} Nxc7 {[%emt 0:00:36]} 56. Bxb6 {[%emt 0:00:26]} Na6 {[%emt 0:00:26]} 57. Bxa7 {[%emt 0:00:36]} Nxb4 {[%emt 0:00:28]} 58. Nb5 {[%emt 0:00:40]} Ke7 {[%emt 0:00:52]} 59. Bb8 {[%emt 0:00:30]} Na6 {[%emt 0:00:36]} 60. Bxd6+ {[%emt 0:00:29]} Kd7 {[%emt 0:00:29]} 61. Ba3 {[%emt 0:00:38]} Be7 {[%emt 0:00:33]} 62. Bb2 {[%emt 0:00:37]} Bd6 {[%emt 0:00:27]} 63. Nxd6 {[%emt 0:00:31]} Kxd6 {[%emt 0:00:26]} 64. Ba3+ {[%emt 0:00:26]} Kd7 {[%emt 0:00:26]} 65. c5 {[%emt 0:00:27]} Nc7 {[%emt 0:00:28]} 66. c6+ {[%emt 0:00:27]} Kc8 {[%emt 0:00:26]} 67. Bd6 {[%emt 0:00:31]} Nb5 {[%emt 0:00:27]} 68. Bxe5 {[%emt 0:00:26]} Na3 {[%emt 0:00:27]} 69. d6 {[%emt 0:00:33]} Nc4 {[%emt 0:00:32]} 70. d7+ {[%emt 0:00:26]} Kd8 {[%emt 0:00:26]} 71. Bf6+ {[%emt 0:00:26]} 1-0

[Event "9th RTU Rapid 2019"]
[Site "Riga"]
[Date "2019.08.04"]
[Round "2.7"]
[White "Grineva, Marianna"]
[Black "Saduakassova, Dinara"]
[Result "0-1"]
[WhiteElo "2035"]
[BlackElo "2437"]
[PlyCount "76"]
[EventDate "2019.08.05"]
[EventType "swiss"]
[EventCountry "LAT"]
[TimeControl "5400+30"]
[WhiteClock "0:03:39"]
[BlackClock "0:00:11"]

1. e4 {[%emt 1:15:23]} c5 {[%emt 1:15:20]} 2. Nf3 {[%emt 0:00:26]} e6 {[%emt 0:00:26]} 3. d4 {[%emt 0:00:27]} cxd4 {[%emt 0:00:26]} 4. Nxd4 {[%emt 0:00:26]} Nc6 {[%emt 0:00:26]} 5. Nc3 {[%emt 0:00:40]} Qc7 {[%emt 0:00:26]} 6. Be3 {[%emt 0:00:36]} a6 {[%emt 0:00:26]} 7. Qd2 {[%emt 0:00:31]} Be7 {[%emt 0:00:26]} 8. O-O-O {[%emt 0:00:38]} Nf6 {[%emt 0:00:30]} 9. f3 {[%emt 0:00:44]} b5 {[%emt 0:00:40]} 10. Nxc6 {[%emt 0:01:51]} dxc6 {[%emt 0:00:56]} 11. Qf2 {[%emt 0:00:29]} c5 {[%emt 0:01:30]} 12. Qg3 {[%emt 0:01:39]} Qxg3 {[%emt 0:00:34]} 13. hxg3 {[%emt 0:00:26]} Bb7 {[%emt 0:01:44]} 14. g4 {[%emt 0:01:16]} Nd7 {[%emt 0:00:56]} 15. Bf4 {[%emt 0:02:58]} O-O-O {[%emt 0:01:46]} 16. a4 {[%emt 0:03:29]} b4 {[%emt 0:00:29]} 17. Nb1 {[%emt 0:00:26]} h6 {[%emt 0:02:38]} 18. Nd2 {[%emt 0:00:53]} Nb6 {[%emt 0:01:19]} 19. b3 {[%emt 0:01:34]} Bg5 {[%emt 0:01:57]} 20. Bxg5 {[%emt 0:02:03]} hxg5 {[%emt 0:00:27]} 21. Bd3 {[%emt 0:00:28]} a5 {[%emt 0:00:44]} 22. Rh5 {[%emt 0:01:08]} Rxh5 {[%emt 0:00:53]} 23. gxh5 {[%emt 0:00:27]} Kc7 {[%emt 0:00:41]} 24. Rh1 {[%emt 0:00:47]} Rh8 {[%emt 0:00:38]} 25. Kd1 {[%emt 0:00:39]} Kd6 {[%emt 0:01:23]} 26. Ke2 {[%emt 0:00:32]} Ke5 {[%emt 0:00:30]} 27. Ke3 {[%emt 0:00:33]} f5 {[%emt 0:01:11]} 28. Rh3 {[%emt 0:01:37]} f4+ {[%emt 0:00:41]} 29. Ke2 {[%emt 0:00:42]} Kd4 {[%emt 0:00:37]} 30. Bc4 {[%emt 0:00:50]} Nxc4 {[%emt 0:00:48]} 31. Nxc4 {[%emt 0:00:26]} Ba6 {[%emt 0:00:26]} 32. Rh1 {[%emt 0:00:41]} Bxc4+ {[%emt 0:00:27]} 33. bxc4 {[%emt 0:00:28]} Kc3 {[%emt 0:00:37]} 34. Rd1 {[%emt 0:00:34]} Kxc2 {[%emt 0:00:31]} 35. Rd6 {[%emt 0:00:32]} b3 {[%emt 0:00:28]} 36. Rd2+ {[%emt 0:00:32]} Kc3 {[%emt 0:00:27]} 37. Kd1 {[%emt 0:00:30]} b2 {[%emt 0:00:31]} 38. Rc2+ {[%emt 0:00:28]} Kb3 {[%emt 0:00:26]} 0-1

[Event "9th RTU Rapid 2019"]
[Site "Riga"]
[Date "2019.08.04"]
[Round "2.8"]
[White "Omelja, Artem"]
[Black "Visockis, Janis"]
[Result "1-0"]
[WhiteElo "2436"]
[BlackElo "2038"]
[PlyCount "111"]
[EventDate "2019.08.05"]
[EventType "swiss"]
[EventCountry "LAT"]
[TimeControl "5400+30"]
[WhiteClock "0:02:12"]
[BlackClock "0:05:48"]

1. d4 {[%emt 1:15:25]} d5 {[%emt 1:15:22]} 2. c4 {[%emt 0:00:27]} c6 {[%emt 0:00:25]} 3. e3 {[%emt 0:00:38]} e6 {[%emt 0:00:37]} 4. b3 {[%emt 0:00:41]} f5 {[%emt 0:00:29]} 5. Bd3 {[%emt 0:00:34]} Nf6 {[%emt 0:00:27]} 6. Nf3 {[%emt 0:00:27]} Bd6 {[%emt 0:00:27]} 7. O-O {[%emt 0:00:31]} Qe7 {[%emt 0:00:26]} 8. Bb2 {[%emt 0:00:28]} O-O {[%emt 0:00:36]} 9. Nc3 {[%emt 0:00:27]} Bd7 {[%emt 0:00:45]} 10. Ne2 {[%emt 0:00:30]} Be8 {[%emt 0:00:58]} 11. Ne5 {[%emt 0:00:32]} Bh5 {[%emt 0:00:34]} 12. f3 {[%emt 0:00:27]} Nbd7 {[%emt 0:00:41]} 13. Nf4 {[%emt 0:00:29]} Bf7 {[%emt 0:01:10]} 14. h4 {[%emt 0:00:36]} Rad8 {[%emt 0:00:46]} 15. Qe1 {[%emt 0:00:30]} Bb8 {[%emt 0:00:33]} 16. Qg3 {[%emt 0:02:25]} Nxe5 {[%emt 0:00:45]} 17. dxe5 {[%emt 0:00:27]} Nh5 {[%emt 0:01:37]} 18. Nxh5 {[%emt 0:00:40]} Bxh5 {[%emt 0:00:26]} 19. Rad1 {[%emt 0:00:50]} Bc7 {[%emt 0:00:41]} 20. cxd5 {[%emt 0:00:42]} exd5 {[%emt 0:00:49]} 21. Rd2 {[%emt 0:00:41]} Bb6 {[%emt 0:00:44]} 22. f4 {[%emt 0:00:27]} Bg4 {[%emt 0:01:01]} 23. Be2 {[%emt 0:00:30]} h5 {[%emt 0:01:06]} 24. Bxg4 {[%emt 0:00:28]} hxg4 {[%emt 0:00:27]} 25. Qf2 {[%emt 0:00:26]} Rd7 {[%emt 0:00:44]} 26. g3 {[%emt 0:00:27]} Rfd8 {[%emt 0:00:40]} 27. Rfd1 {[%emt 0:00:27]} g6 {[%emt 0:00:55]} 28. Kf1 {[%emt 0:00:27]} Kf7 {[%emt 0:00:26]} 29. Qe2 {[%emt 0:00:30]} Qb4 {[%emt 0:00:49]} 30. Bd4 {[%emt 0:03:26]} Ke6 {[%emt 0:01:07]} 31. Qd3 {[%emt 0:02:10]} Bxd4 {[%emt 0:01:21]} 32. exd4 {[%emt 0:00:30]} a6 {[%emt 0:00:40]} 33. Rc1 {[%emt 0:00:28]} Qb5 {[%emt 0:00:31]} 34. Ke2 {[%emt 0:00:28]} Ra8 {[%emt 0:00:46]} 35. Rc5 {[%emt 0:00:33]} Qxd3+ 36. Kxd3 {[%emt 0:00:27]} a5 {[%emt 0:01:17]} 37. a4 {[%emt 0:00:44]} Ra6 {[%emt 0:00:29]} 38. Kc3 {[%emt 0:00:32]} Rc7 {[%emt 0:00:56]} 39. Kb2 {[%emt 0:00:27]} Rc8 {[%emt 0:00:45]} 40. Ka3 {[%emt 0:00:29]} Kd7 {[%emt 0:00:40]} 41. Rc1 {[%emt 0:00:35]} Rb6 {[%emt 0:00:41]} 42. Rc5 {[%emt 0:00:38]} Ra8 {[%emt 0:00:31]} 43. Rh2 {[%emt 0:01:37]} Rb4 {[%emt 0:02:42]} 44. Rxa5 {[%emt 0:00:28]} Rxb3+ {[%emt 0:00:31]} 45. Kxb3 {[%emt 0:00:27]} Rxa5 {[%emt 0:00:26]} 46. h5 {[%emt 0:00:26]} gxh5 {[%emt 0:00:35]} 47. Rxh5 {[%emt 0:00:26]} b5 {[%emt 0:00:40]} 48. axb5 {[%emt 0:00:27]} Rxb5+ {[%emt 0:00:31]} 49. Kc3 {[%emt 0:00:26]} Ra5 {[%emt 0:00:39]} 50. Rxf5 {[%emt 0:00:27]} Ra3+ {[%emt 0:00:35]} 51. Kd2 {[%emt 0:01:15]} Rxg3 {[%emt 0:00:35]} 52. Rf7+ {[%emt 0:00:28]} Ke8 {[%emt 0:00:57]} 53. Rg7 {[%emt 0:00:30]} Kf8 {[%emt 0:00:39]} 54. Rg5 {[%emt 0:00:29]} Rg1 {[%emt 0:00:51]} 55. f5 {[%emt 0:00:41]} g3 {[%emt 0:00:27]} 56. f6 {[%emt 0:00:29]} 1-0

[Event "9th RTU Rapid 2019"]
[Site "Riga"]
[Date "2019.08.04"]
[Round "2.9"]
[White "Vedrickiene, Jovita"]
[Black "Bulmaga, Irina"]
[Result "0-1"]
[WhiteElo "2036"]
[BlackElo "2434"]
[PlyCount "72"]
[EventDate "2019.08.05"]
[EventType "swiss"]
[EventCountry "LAT"]
[TimeControl "5400+30"]
[WhiteClock "0:06:19"]
[BlackClock "0:00:08"]

1. e4 {[%emt 1:15:22]} c5 {[%emt 1:15:23]} 2. d3 {[%emt 0:00:31]} Nc6 {[%emt 0:00:31]} 3. g3 {[%emt 0:00:41]} e6 {[%emt 0:00:46]} 4. Bg2 {[%emt 0:00:32]} Nf6 {[%emt 0:00:26]} 5. Nf3 {[%emt 0:00:42]} d5 {[%emt 0:00:27]} 6. Nbd2 {[%emt 0:00:45]} Be7 {[%emt 0:00:28]} 7. O-O {[%emt 0:00:31]} Qc7 {[%emt 0:00:29]} 8. Re1 {[%emt 0:00:38]} b6 {[%emt 0:00:26]} 9. Nf1 {[%emt 0:03:19]} dxe4 {[%emt 0:01:06]} 10. dxe4 {[%emt 0:00:27]} Bb7 {[%emt 0:00:30]} 11. Bf4 {[%emt 0:01:19]} e5 {[%emt 0:00:42]} 12. Bd2 {[%emt 0:02:19]} O-O {[%emt 0:00:57]} 13. Nh4 {[%emt 0:01:21]} Rfd8 {[%emt 0:00:55]} 14. c3 {[%emt 0:01:47]} Na5 {[%emt 0:01:00]} 15. Qe2 {[%emt 0:01:37]} c4 {[%emt 0:00:41]} 16. Kh1 {[%emt 0:01:07]} Nd7 {[%emt 0:01:05]} 17. Nf5 {[%emt 0:00:47]} Bf8 {[%emt 0:00:27]} 18. Bg5 {[%emt 0:03:21]} f6 {[%emt 0:00:37]} 19. Be3 {[%emt 0:00:27]} Nc5 {[%emt 0:02:11]} 20. Qg4 {[%emt 0:00:33]} Nd3 {[%emt 0:01:09]} 21. Re2 {[%emt 0:00:26]} Kh8 {[%emt 0:01:01]} 22. h4 {[%emt 0:00:27]} Bc8 {[%emt 0:00:34]} 23. h5 {[%emt 0:00:32]} Nb7 {[%emt 0:00:45]} 24. Qh4 {[%emt 0:00:30]} Qf7 {[%emt 0:00:53]} 25. g4 {[%emt 0:00:46]} h6 {[%emt 0:00:54]} 26. N1g3 {[%emt 0:00:35]} Nbc5 {[%emt 0:00:45]} 27. Rg1 {[%emt 0:00:30]} Bb7 {[%emt 0:00:37]} 28. Rd2 {[%emt 0:01:00]} Ne6 {[%emt 0:01:13]} 29. Ne2 {[%emt 0:00:35]} Ng5 {[%emt 0:00:51]} 30. Bxg5 {[%emt 0:00:59]} hxg5 {[%emt 0:00:47]} 31. Qg3 {[%emt 0:00:32]} Nxf2+ {[%emt 0:00:28]} 32. Qxf2 {[%emt 0:00:30]} Rxd2 {[%emt 0:00:26]} 33. Bf3 {[%emt 0:00:49]} Bc5 {[%emt 0:00:42]} 34. Qh2 {[%emt 0:00:32]} Bxg1 {[%emt 0:00:32]} 35. Kxg1 {[%emt 0:00:27]} Rad8 {[%emt 0:00:29]} 36. h6 {[%emt 0:00:36]} g6 {[%emt 0:00:28]} 0-1

[Event "9th RTU Rapid 2019"]
[Site "Riga"]
[Date "2019.08.04"]
[Round "2.10"]
[White "Gagare, Shardul"]
[Black "Zhukov, Anton"]
[Result "1-0"]
[WhiteElo "2430"]
[BlackElo "2087"]
[PlyCount "81"]
[EventDate "2019.08.05"]
[EventType "swiss"]
[EventCountry "LAT"]
[TimeControl "5400+30"]
[WhiteClock "0:01:27"]
[BlackClock "0:03:21"]

1. Nf3 {[%emt 1:15:25]} Nf6 {[%emt 1:15:21]} 2. g3 {[%emt 0:00:28]} g6 {[%emt 0:00:28]} 3. Bg2 {[%emt 0:00:27]} Bg7 {[%emt 0:00:02]} 4. O-O O-O {[%emt 0:00:54]} 5. c4 {[%emt 0:00:57]} d6 {[%emt 0:00:25]} 6. Nc3 {[%emt 0:00:15]} e5 7. d3 {[%emt 0:00:44]} Nc6 {[%emt 0:00:57]} 8. Rb1 {[%emt 0:00:26]} a5 {[%emt 0:00:33]} 9. a3 {[%emt 0:00:27]} h6 {[%emt 0:01:16]} 10. b4 {[%emt 0:00:27]} axb4 {[%emt 0:00:27]} 11. axb4 {[%emt 0:00:27]} Be6 {[%emt 0:00:44]} 12. b5 {[%emt 0:00:27]} Ne7 {[%emt 0:00:35]} 13. Bb2 {[%emt 0:00:27]} Nd7 {[%emt 0:00:52]} 14. Ra1 {[%emt 0:01:00]} c6 {[%emt 0:01:19]} 15. Rxa8 {[%emt 0:00:38]} Qxa8 {[%emt 0:00:27]} 16. Qc2 {[%emt 0:00:29]} d5 {[%emt 0:01:13]} 17. Ra1 {[%emt 0:00:27]} Qd8 {[%emt 0:00:34]} 18. Nd2 {[%emt 0:00:44]} e4 {[%emt 0:02:08]} 19. dxe4 {[%emt 0:02:43]} dxc4 {[%emt 0:00:27]} 20. bxc6 {[%emt 0:00:38]} Nxc6 {[%emt 0:00:33]} 21. Nd5 {[%emt 0:00:27]} Nd4 {[%emt 0:01:47]} 22. Bxd4 {[%emt 0:00:40]} Bxd4 {[%emt 0:00:28]} 23. Rb1 {[%emt 0:00:29]} Ne5 {[%emt 0:02:51]} 24. e3 {[%emt 0:00:55]} Bc5 {[%emt 0:01:25]} 25. Nxc4 {[%emt 0:01:01]} Nxc4 {[%emt 0:00:33]} 26. Qxc4 {[%emt 0:00:27]} b6 {[%emt 0:00:35]} 27. Rd1 {[%emt 0:02:38]} Bxd5 {[%emt 0:00:48]} 28. Rxd5 {[%emt 0:00:31]} Qe7 {[%emt 0:00:44]} 29. Qd3 {[%emt 0:00:37]} Re8 {[%emt 0:00:38]} 30. h4 {[%emt 0:00:36]} h5 {[%emt 0:00:38]} 31. e5 {[%emt 0:00:41]} Qe6 {[%emt 0:01:01]} 32. Kh2 {[%emt 0:00:28]} Bf8 {[%emt 0:00:42]} 33. Bh3 {[%emt 0:00:39]} Qe7 {[%emt 0:00:31]} 34. Qc4 {[%emt 0:02:01]} Rd8 {[%emt 0:00:42]} 35. Rd4 {[%emt 0:02:25]} Rxd4 {[%emt 0:01:44]} 36. exd4 {[%emt 0:00:27]} Qb4 {[%emt 0:00:27]} 37. Qd5 {[%emt 0:02:13]} Be7 {[%emt 0:00:57]} 38. Bf1 {[%emt 0:00:52]} Kg7 {[%emt 0:01:11]} 39. Bc4 {[%emt 0:00:29]} b5 {[%emt 0:01:09]} 40. Qxf7+ {[%emt 0:00:30]} Kh6 {[%emt 0:00:27]} 41. Bd3 {[%emt 0:00:27]} 1-0

[Event "9th RTU Rapid 2019"]
[Site "Riga"]
[Date "2019.08.04"]
[Round "2.11"]
[White "Lagerborg, Krister"]
[Black "Kopylov, Michael"]
[Result "0-1"]
[WhiteElo "2129"]
[BlackElo "2414"]
[PlyCount "90"]
[EventDate "2019.08.05"]
[EventType "swiss"]
[EventCountry "LAT"]
[TimeControl "5400+30"]
[WhiteClock "0:03:53"]
[BlackClock "0:00:16"]

1. e4 {[%emt 1:15:25]} d5 {[%emt 1:15:25]} 2. exd5 {[%emt 0:00:30]} Qxd5 {[%emt 0:00:30]} 3. Nf3 {[%emt 0:00:30]} Bg4 {[%emt 0:00:30]} 4. Be2 {[%emt 0:00:38]} Nc6 {[%emt 0:00:30]} 5. d4 {[%emt 0:00:39]} O-O-O {[%emt 0:00:31]} 6. Be3 {[%emt 0:00:39]} e5 {[%emt 0:00:35]} 7. c4 {[%emt 0:00:47]} Qa5+ {[%emt 0:00:31]} 8. Bd2 {[%emt 0:00:30]} Bb4 {[%emt 0:00:30]} 9. d5 {[%emt 0:00:42]} Bxf3 {[%emt 0:00:33]} 10. Bxf3 {[%emt 0:00:39]} Nd4 {[%emt 0:00:30]} 11. Nc3 {[%emt 0:01:04]} Qa6 {[%emt 0:00:30]} 12. Be2 {[%emt 0:01:04]} Nf6 {[%emt 0:00:40]} 13. a3 {[%emt 0:00:36]} Rhe8 {[%emt 0:01:07]} 14. axb4 {[%emt 0:00:58]} Qxa1 {[%emt 0:00:30]} 15. Qxa1 {[%emt 0:01:07]} Nc2+ {[%emt 0:00:30]} 16. Kf1 {[%emt 0:00:49]} Nxa1 {[%emt 0:00:30]} 17. Bd1 {[%emt 0:00:30]} c6 {[%emt 0:00:30]} 18. Bg5 {[%emt 0:00:39]} b5 {[%emt 0:00:48]} 19. Bxf6 {[%emt 0:02:15]} gxf6 {[%emt 0:00:30]} 20. dxc6 {[%emt 0:00:41]} bxc4 {[%emt 0:00:51]} 21. Bg4+ {[%emt 0:01:02]} Kc7 {[%emt 0:00:40]} 22. Bd7 {[%emt 0:00:30]} Rxd7 {[%emt 0:01:53]} 23. cxd7 {[%emt 0:00:30]} Kxd7 {[%emt 0:00:30]} 24. Ke2 {[%emt 0:00:30]} Nc2 {[%emt 0:00:31]} 25. Rd1+ {[%emt 0:01:13]} Nd4+ {[%emt 0:01:51]} 26. Ke3 {[%emt 0:00:48]} Rb8 {[%emt 0:00:42]} 27. Ne2 {[%emt 0:01:22]} Rxb4 {[%emt 0:00:33]} 28. Nxd4 exd4+ {[%emt 0:00:30]} 29. Rxd4+ {[%emt 0:01:00]} Kc6 {[%emt 0:00:41]} 30. Rf4 {[%emt 0:01:44]} Kd5 {[%emt 0:01:29]} 31. Rxf6 {[%emt 0:01:31]} Rb3+ {[%emt 0:02:02]} 32. Kd2 {[%emt 0:01:16]} Rxb2+ {[%emt 0:00:03]} 33. Kc1 Rb7 {[%emt 0:01:53]} 34. Kc2 {[%emt 0:01:00]} Ke5 {[%emt 0:01:28]} 35. Rc6 {[%emt 0:00:47]} Kd4 {[%emt 0:00:36]} 36. Rd6+ {[%emt 0:00:36]} Kc5 {[%emt 0:00:30]} 37. Rf6 {[%emt 0:00:30]} Kb4 {[%emt 0:01:04]} 38. g4 {[%emt 0:01:53]} Re7 {[%emt 0:00:35]} 39. Rf3 {[%emt 0:01:03]} a5 {[%emt 0:00:50]} 40. g5 {[%emt 0:01:06]} a4 {[%emt 0:00:34]} 41. Rf6 {[%emt 0:00:33]} Re2+ {[%emt 0:01:04]} 42. Kd1 {[%emt 0:00:30]} Rb2 {[%emt 0:00:37]} 43. Rxf7 {[%emt 0:00:35]} a3 {[%emt 0:00:30]} 44. Rb7+ {[%emt 0:01:03]} Kc3 {[%emt 0:00:30]} 45. Ra7 {[%emt 0:00:30]} a2 {[%emt 0:00:31]} 0-1

[Event "9th RTU Rapid 2019"]
[Site "Riga"]
[Date "2019.08.04"]
[Round "2.12"]
[White "Korchmar, Vasiliy"]
[Black "Brikers, Aleksandrs"]
[Result "1-0"]
[WhiteElo "2413"]
[BlackElo "2011"]
[PlyCount "65"]
[EventDate "2019.08.05"]
[EventType "swiss"]
[EventCountry "LAT"]
[TimeControl "5400+30"]
[WhiteClock "0:00:07"]
[BlackClock "0:01:57"]

1. d4 {[%emt 1:15:22]} d5 {[%emt 1:15:21]} 2. Nf3 {[%emt 0:00:29]} Nf6 {[%emt 0:00:27]} 3. Bf4 {[%emt 0:00:27]} c5 {[%emt 0:00:29]} 4. e3 {[%emt 0:00:27]} Nc6 {[%emt 0:00:27]} 5. Nbd2 {[%emt 0:00:26]} e6 {[%emt 0:01:07]} 6. c3 {[%emt 0:00:27]} Bd6 {[%emt 0:00:35]} 7. Bg3 {[%emt 0:00:27]} O-O {[%emt 0:00:30]} 8. Bd3 {[%emt 0:00:28]} Re8 {[%emt 0:01:04]} 9. Ne5 {[%emt 0:00:32]} Ne7 {[%emt 0:00:52]} 10. O-O {[%emt 0:02:16]} Nf5 {[%emt 0:01:03]} 11. Bxf5 {[%emt 0:01:05]} exf5 {[%emt 0:00:27]} 12. Nd3 {[%emt 0:00:50]} cxd4 {[%emt 0:00:54]} 13. cxd4 {[%emt 0:00:34]} Ne4 {[%emt 0:01:06]} 14. Bxd6 {[%emt 0:00:34]} Qxd6 {[%emt 0:00:40]} 15. Nf3 {[%emt 0:00:47]} Bd7 {[%emt 0:01:35]} 16. Qb3 {[%emt 0:00:28]} Bc6 {[%emt 0:01:20]} 17. Rac1 {[%emt 0:00:35]} Rac8 {[%emt 0:01:42]} 18. Rc2 {[%emt 0:00:56]} b6 {[%emt 0:03:03]} 19. Rfc1 {[%emt 0:00:53]} Bb7 {[%emt 0:00:32]} 20. Qa4 {[%emt 0:01:47]} Qb8 {[%emt 0:02:27]} 21. Nfe5 {[%emt 0:07:05]} f6 {[%emt 0:02:33]} 22. Nc6 {[%emt 0:01:03]} Bxc6 {[%emt 0:01:07]} 23. Rxc6 {[%emt 0:00:27]} Nd6 {[%emt 0:01:10]} 24. Nf4 {[%emt 0:00:27]} b5 {[%emt 0:00:48]} 25. Qa6 {[%emt 0:00:34]} Rxc6 {[%emt 0:00:50]} 26. Rxc6 {[%emt 0:01:05]} Rc8 {[%emt 0:00:41]} 27. Nxd5 {[%emt 0:00:36]} Rxc6 {[%emt 0:00:34]} 28. Qxc6 {[%emt 0:00:29]} Nc4 {[%emt 0:00:28]} 29. b3 {[%emt 0:00:31]} Nd2 {[%emt 0:00:30]} 30. Ne7+ {[%emt 0:00:43]} Kh8 {[%emt 0:00:29]} 31. Nxf5 {[%emt 0:00:26]} b4 {[%emt 0:00:32]} 32. Qc2 {[%emt 0:00:51]} Qb5 {[%emt 0:00:30]} 33. Qc8+ {[%emt 0:00:26]} 1-0